Workbook

Sheet Home
D1: Maintenance Equipment Life-Cycle Cost Analysis Tool (E-L-T)
D16: Instructions:
D17: * This tool is developed for Iowa counties to support equipment management decisions
D18: * This tool adopts the life-cycle cost analysis method and uses historical equipment performance data for future cost estimation
D19: * Inputs include equipment usage and current ownership and operating costs, and the outputs include future costs and optimum replacement time
D20: * This tool works for two types of equipment, motor graders and trucks, which are the most common types of equipment in Iowa counties
D21: * This tool considers two acquisition options, purchasing and leasing
D22: * This tool has two modules, deterministic analysis and stochastic analysis
D23: * The deterministic analysis receives predetermined and constant input variables and yields one-point estimations
D24: * The stochastic analysis considers uncertainties associated with inputs and provides a range of values and confidence intervals for results

Sheet _@RISKFitInformation (hidden)
A1: Created By Version | B1: 7.6.0
A2: Required Version | B2: 5.0.0
A3: Recommended Version | B3: 5.0.0
A4: Modified By Version | B4: 7.6.0
A9: Count | B9: 2
A10: GUID | B10: Name | C10: Range | D10: CRC | E10: Options | F10: Comp. Graph Serialization | G10: PP Graph Serialization | H10: QQ Graph Serialization | I10: Unsued | J10: Fixed Params | K10: Bootstrap Options | L10: BootstrapParamGraphSerialization | M10: BatchFit Options | N10: BootstrapGOFGraphSerialization | O10: FitSelector
A11: FIT_CE167_35E8B | B11: Dataset 1 | C11: =Background!#REF! ->  | D11: 0 | E11: F1 0 0 -1E+300 1E+300 1 0 0 0 0 1 25 BetaGeneral Binomial Expon ExtValue ExtValueMin Gamma Geomet IntUniform InvGauss Kumaraswamy Laplace Levy Logistic LogLogistic Lognorm NegBin Normal Pareto Pearson5 Pearson6 Poisson Reciprocal Triang Uniform Weibull 0 1 -1 1 0 1 0 0 0 | F11: GF1_rK0qDwEAEAC2AQwjACYANABxAIUAhgCUAKIAkAGyAawBKgD//wAAAAAAAQQAAAAAAAAAAAEcRml0IENvbXBhcmlzb24gZm9yIERhdGFzZXQgMQEbUmlza05vcm1hbCgxMDU3NjQuNCwxOTcwLjApAQEQAAIAAQpTdGF0aXN0aWNzAwEBAP8BAQEBAQABAQEABAAAAAEBAQEBAAEBAQAEAAAACsEAAdAAAOAAAPYAAAwBACIBADgBAE4BAGQBAHoBAA0ABUlucHV0AAAlAQECAA4ABk5vcm1hbAABLwEAAgAUAAxVbnVzZWQgQ3VydmUAAk8BAAIAFAAMVW51c2VkIEN1cnZlAAOMAQACABQADFVudXNlZCBDdXJ2ZQAETAEAAgAUAAxVbnVzZWQgQ3VydmUABTkBAAIAFAAMVW51c2VkIEN1cnZlAAZOAQACABQADFVudXNlZCBDdXJ2ZQAHIwEAAgAUAAxVbnVzZWQgQ3VydmUACCkBAAIAFAAMVW51c2VkIEN1cnZlAAlgAQACAJgBogEBAQIBmpmZmZmZqT8AAGZmZmZmZu4/AAAFAAEBAQABAQEA | J11: 0 8 | K11: F1 0 1000 .95 | O11: 1 | P11: TRUE

Sheet Deterministic
E1: Life cycle cost analysis Inputs
A2: General data | D2: Equipment data | Z2: Examples:
A3: Years to simulate | B3: 15 | D3: Purchasing option | F3: Leasing option
A4: Inflation rate (%) | B4: 0.04 | D4: Type | F4: Type
A5: Insurance and mis.($) | B5: 8000 | D5: Acquisition year | F5: Acquisition year
D6: Model description | E6: CAT 140 H | F6: Model description
D7: Estimated working hours/ year | E7: 1800 | F7: Estimated mileage/ year | J7: Result Buttons
D8: Purchase price ($) | E8: 176500 | F8: Down payment ($)
D9: Cumulative hours | E9: 15036 | F9: Annual payment ($)
D10: Total operating cost ($) | E10: 239789 | F10: Total years of payment
F11: Years of warranty
F12: Residual value($) (end of lease)
F13: Cumulative mileage
F14: Total operating cost ($)
E15: Life cycle cost analysis Outputs
A16: Purchasing option LCCA | P16: Results and graphs
A17: Ownership | H17: Operation | J17: Total | K17: Cumulative | N17: The Optimum year for replacement (Purchasing op.)
A18: Year | B18: Cumulative hours | C18: Purchase price | D18: Trade-in value | E18: Ins. and misc. | F18: Total ownership cost | G18: Own. cost/ hr | H18: Oper. cost | I18: Oper. cost/ hr | J18: cost/ hr | K18: LCC
A19: 2019 | B19: 16836 | C19: 176500 | D19: 33499.7 | E19: 128000 | F19: =C19+E19-D19 -> 271000.3 | G19: =F19/B19 -> 16.09647779 | H19: 285952.7456 | I19: =H19/B19 -> 16.98460119 | J19: =I19+G19 -> 33.08107897 | K19: 579231.1674
A20: 2020 | B20: 18636 | C20: 176500 | D20: 32634.85 | E20: 136000 | F20: =C20+E20-D20 -> 279865.15 | G20: =F20/B20 -> 15.01744741 | H20: 335748.7542 | I20: =H20/B20 -> 18.01613835 | J20: =I20+G20 -> 33.03358576 | K20: 665847.9988 | N20: 2020
A21: 2021 | B21: 20436 | C21: 176500 | D21: 31840.6 | E21: 144000 | F21: 288659.4 | G21: 14.12504404 | H21: 389176.9739 | I21: 19.04369612 | J21: 33.16874016 | K21: 762473.7349
A22: 2022 | B22: 22236 | C22: 176500 | D22: 31099.3 | E22: 152000 | F22: 297400.7 | G22: 13.37473916 | H22: 446237.4258 | I22: 20.06824185 | J22: 33.44298101 | K22: 869951.427
A23: 2023 | B23: 24036 | C23: 176500 | D23: 30428.6 | E23: 160000 | F23: 306071.4 | G23: 12.73387419 | H23: 506930.1308 | I23: 21.09045311 | J23: 33.82432729 | K23: 989140.6721
A24: 2024 | B24: 25836 | C24: 176500 | D24: 30428.6 | E24: 168000 | F24: 314071.4 | G24: 12.15634773 | H24: 571255.047 | I24: 22.11081619 | J24: 34.26716392 | K24: 1120220.391
A25: 2025 | B25: 27636 | C25: 176500 | D25: 30428.6 | E25: 176000 | F25: 322071.4 | G25: 11.65405268 | H25: 639212.1742 | I25: 23.12969222 | J25: 34.7837449 | K25: 1264983.604
A26: 2026 | B26: 29436 | C26: 176500 | D26: 30428.6 | E26: 184000 | F26: 330071.4 | G26: 11.21318793 | H26: 710801.5546 | I26: 24.14735543 | J26: 35.36054337 | K26: 1424506.511
A27: 2027 | B27: 31236 | C27: 176500 | D27: 30428.6 | E27: 192000 | F27: 338071.4 | G27: 10.82313356 | H27: 786023.146 | I27: 25.16401415 | J27: 35.98714772 | K27: 1599937.046
A28: 2028 | B28: 33036 | C28: 176500 | D28: 30428.6 | E28: 200000 | F28: 346071.4 | G28: 10.47558421 | H28: 864876.9907 | I28: 26.17983384 | J28: 36.65541805 | K28: 1792499.435
A29: 2029 | B29: 34836 | C29: 176500 | D29: 30428.6 | E29: 208000 | F29: 354071.4 | G29: 10.16395109 | H29: 947363.0885 | I29: 27.19494455 | J29: 37.35889564 | K29: 2003498.602
A30: 2030 | B30: 36636 | C30: 176500 | D30: 30428.6 | E30: 216000 | F30: 362071.4 | G30: 9.882940277 | H30: 1033481.355 | I30: 28.2094485 | J30: 38.09238878 | K30: 2234324.924
A31: 2031 | B31: 38436 | C31: 176500 | D31: 30428.6 | E31: 224000 | F31: 370071.4 | G31: 9.628249558 | H31: 1123231.875 | I31: 29.22343312 | J31: 38.85168268 | K31: 2486459.722
A32: 2032 | B32: 40236 | C32: 176500 | D32: 30428.6 | E32: 232000 | F32: 378071.4 | G32: 9.396346555 | H32: 1216614.648 | I32: 30.2369681 | J32: 39.63331466 | K32: 2761480.272
A33: 2033 | B33: 42036 | C33: 176500 | D33: 30428.6 | E33: 240000 | F33: 386071.4 | G33: 9.18430393 | H33: 1313629.675 | I33: 31.25011121 | J33: 40.43441514 | K33: 3061065.612
A38: 2019 | B38: 0
A39: 2020 | B39: 0
A40: 2021 | B40: 0
A41: 2022 | B41: 0
A42: 2023 | B42: 0
A43: 2024 | B43: 0
A44: 2025 | B44: 0
A45: 2026 | B45: 0
A46: 2027 | B46: 0
A47: 2028 | B47: 0
A48: 2029 | B48: 0
A49: 2030 | B49: 0
A50: 2031 | B50: 0
A51: 2032 | B51: 0
A52: 2033 | B52: 0

Sheet Stochastic
F1: Life cycle cost analysis Inputs
A2: General data | E2: Equipment data
A3: Item | B3: Vale | E3: Item | F3: Value | H3: Item | I3: Value
A4: Years to simulate | B4: 15 | E4: Purchasing option | H4: Leasing option
E5: Type | H5: Type
E6: Acquisition year | H6: Acquisition year
E7: Model description | F7: CAT 12 M3 | H7: Model description
E8: Work hours/year | H8: Work hours/year | L8: Result Buttons | P8: Monte_Carlo simulation buttons
E9: Purchase price ($) | F9: 230000 | H9: Down payment ($) | I9: 10000
E10: Cumulative hours | F10: 2501 | H10: Annual payment ($) | I10: 18800
A11: Stochastic items | B11: Min | C11: Most likely | D11: Max | E11: Total operating cost ($) | F11: 30514 | H11: Total years of payment | I11: 5
A12: Inflation rate (%) | B12: 0.035 | C12: 0.04 | D12: 0.045 | H12: Years of warranty | I12: 5 | U12: Year of
A13: Insurance and mis. ($) | B13: 5000 | C13: 5260 | D13: 5500 | H13: Residual value($) (end of lease) | I13: 156000
A14: Est. hours / year (Purch.) | B14: 1700 | C14: 1800 | D14: 1900 | H14: Cumulative mileage | I14: 4616 | U14: Year of
A15: Est. mileage/ year | B15: 1700 | C15: 1800 | D15: 1900 | H15: Total operating cost ($) | I15: 60000
F16: Life cycle cost analysis Outputs
A17: Purchasing option LCCA
A18: Ownership | H18: Operation | J18: Total | K18: Cumulative LCC | N18: The Optimum year for replacement (Purchasing op.)
A19: Year | B19: Cumulative mileage | C19: Purchase price | D19: Trade-in value | E19: Ins. and misc. | F19: Total ownership cost | G19: Own. cost/ miles | H19: Operation cost | I19: Oper. cost/ miles | J19: cost/ miles
A20: 2019 | B20: 4346.819909 | C20: 230000 | D20: 93720.47879 | E20: 16078.21672 | F20: 152357.74 | G20: 35.05039159 | H20: 55433.9166 | I20: 12.75275207 | J20: 47.8 | K20: 215990.4441
A21: 2020 | B21: 6167.84963 | C21: 230000 | D21: 95223.19035 | E21: 20664.55242 | F21: 155441.36 | G21: 25.2018725 | H21: 79535.54854 | I21: 12.89518281 | J21: 38.1 | K21: 254019.226 | N21: 2026
A22: 2021 | B22: 7904.385088 | C22: 230000 | D22: 79009.71202 | E22: 26728.39362 | F22: 177718.68 | G22: 22.4835554 | H22: 112363.9621 | I22: 14.21539574 | J22: 36.7 | K22: 328178.7422
A23: 2022 | B23: 9326.742217 | C23: 230000 | D23: 77621.5483 | E23: 32252.22493 | F23: 184630.68 | G23: 19.79583822 | H23: 141538.1069 | I23: 15.17551398 | J23: 34.97 | K23: 380240.862
A24: 2023 | B24: 11661.87858 | C24: 230000 | D24: 70669.26765 | E24: 35720.19631 | F24: 195050.93 | G24: 16.72551542 | H24: 194718.7497 | I24: 16.69703113 | J24: 33.42 | K24: 468316.8878
A25: 2024 | B25: 13481.48823 | C25: 230000 | D25: 65721.73841 | E25: 42031.73292 | F25: 206309.99 | G25: 15.30320589 | H25: 245096.2992 | I25: 18.1802109 | J25: 33.48 | K25: 575458.2525
A26: 2025 | B26: 15200.37165 | C26: 230000 | D26: 50096.01411 | E26: 47679.10673 | F26: 227583.09 | G26: 14.97220563 | H26: 312120.0438 | I26: 20.53371134 | J26: 35.51 | K26: 733852.2855
A27: 2026 | B27: 17333.68069 | C27: 230000 | D27: 59126.65698 | E27: 52892.4406 | F27: 223765.78 | G27: 12.90930553 | H27: 388342.1893 | I27: 22.40390811 | J27: 35.31 | K27: 829944.6421
A28: 2027 | B28: 18090.01283 | C28: 230000 | D28: 58411.20913 | E28: 60075.6521 | F28: 231664.44 | G28: 12.8062065 | H28: 454497.8483 | I28: 25.12424134 | J28: 37.93 | K28: 1018873.004
A29: 2028 | B29: 20407.8356 | C29: 230000 | D29: 52234.2375 | E29: 64103.01833 | F29: 241868.78 | G29: 11.85176051 | H29: 536281.0774 | I29: 26.27819471 | J29: 38.13 | K29: 1144094.349
A30: 2029 | B30: 22353.4471 | C30: 230000 | D30: 51355.34374 | E30: 69284.75792 | F30: 247929.41 | G30: 11.09132783 | H30: 589090.3278 | I30: 26.35344451 | J30: 37.44 | K30: 1301070.996
A31: 2030 | B31: 23705.21099 | C31: 230000 | D31: 45859.08045 | E31: 76077.16463 | F31: 260218.08 | G31: 10.97725222 | H31: 650241.4913 | I31: 27.43031865 | J31: 38.41 | K31: 1439511.586
A32: 2031 | B32: 26124.79145 | C32: 230000 | D32: 43169.2831 | E32: 78464.7694 | F32: 265295.49 | G32: 10.15493236 | H32: 705771.0047 | I32: 27.01537374 | J32: 37.17 | K32: 1554293.883
A33: 2032 | B33: 28402.04838 | C33: 230000 | D33: 42527.17407 | E33: 83067.26815 | F33: 270540.09 | G33: 9.525372478 | H33: 796000.9117 | I33: 28.02617969 | J33: 37.55 | K33: 1881320.603
A34: 2033 | B34: 29247.25932 | C34: 230000 | D34: 45332.85855 | E34: 89494.88517 | F34: 274162.03 | G34: 9.373939179 | H34: 955323.1521 | I34: 32.66368112 | J34: 42.04 | K34: 2289164.201
A36: Leasing option LCCA
A37: Ownership | H37: Operation | J37: Total | K37: Cumulative LCC
A38: Year | B38: Cumulative mileage | C38: Residual or Salvage value | D38: Total payments | E38: Ins. and misc. | F38: Total ownership cost | G38: Own. cost/ miles | H38: Operation cost | I38: Oper. cost/ miles | J38: cost/ miles
A101: Purchasing results: | B101: Monte-Carlo simulation's Bar chart (the optimum year) | F101: Probabilistic results of the LCC | I101: LCC histogram and the fitted normal-distribution

Sheet Background (hidden)
C1: Minimum | D1: Most likely | E1: Maximum | H1: Probabilistic | O1: Formula | P1: Grader: | BR1: 70 | BT1: 72 | BU1: 73 | BV1: 74 | BW1: 75
C2: a | D2: b | E2: c | G2: alpha | H2: beta | I2: Prob. Func. | P2: Truck:
A3: Grader Salvage value | B3: 1 | C3: 0.5444 | D3: 0.7069 | E3: 0.7094 | G3: =(4*D3+E3-5*C3)/(E3-C3) -> 4.939393939 | H3: =(5*E3-C3-4*D3)/(E3-C3) -> 1.060606061 | I3: =_xlfn.BETA.INV(RAND(),G3,H3,C3,E3) -> 0.6907290564 | BA3: Red | BB3: Yellow | BC3: Green
A4: y = 0.6269x-0.431 | B4: 2 | C4: 0.385001487 | D4: 0.505 | E4: 0.545001487 | G4: =(4*D4+E4-5*B4)/(E4-B4) -> 5.109969836 | H4: =(5*E4-C4-4*D4)/(E4-C4) -> 2.000037175 | I4: =_xlfn.BETA.INV(RAND(),G4,H4,C4,E4) -> 0.4669726368 | AS4: 2024 | AU4: 2019 | AV4: =COUNTIF($AS$4:$AS$103,AU4) -> 0 | AX4: =IF(AV4>0,AU4,"") ->  | AY4: =IF(AV4>3,AV4/100,"") ->  | BA4: =IF(AY4<0.34*(MAX($AY$4:$AY$18)-MIN($AY$4:$AY$18)),AY4,"") ->  | BB4: =IF(AND(AY4>0.339*(MAX($AY$4:$AY$18)-MIN($AY$4:$AY$18)),AY4<0.66*(MAX($AY$4:$AY$18)-MIN($AY$4:$AY$18))),AY4,"") ->  | BC4: =IF(AY4>0.661*(MAX($AY$4:$AY$18)-MIN($AY$4:$AY$18)),AY4,"") ->  | BI4: 2033 | BK4: 2019 | BL4: =COUNTIF($BI$4:$BI$103,BK4) -> 0 | BN4: =IF(BL4>0,BK4,"") ->  | BO4: =IF(BL4>3,BL4/100,"") ->  | BQ4: 712668.68
B5: 3 | C5: 0.3129442299 | D5: 0.3904 | E5: 0.4679442299 | G5: 5.122500035 | H5: 3.001141416 | I5: =_xlfn.BETA.INV(RAND(),G5,H5,C5,E5) -> 0.3898839623 | AS5: 2026 | AU5: 2020 | AV5: =COUNTIF($AS$4:$AS$103,AU5) -> 0 | AX5: =IF(AV5>0,AU5,"") ->  | AY5: =IF(AV5>0,AV5/100,"") ->  | BA5: =IF(AY5<0.34*(MAX($AY$4:$AY$18)-MIN($AY$4:$AY$18)),AY5,"") ->  | BB5: =IF(AND(AY5>0.339*(MAX($AY$4:$AY$18)-MIN($AY$4:$AY$18)),AY5<0.66*(MAX($AY$4:$AY$18)-MIN($AY$4:$AY$18))),AY5,"") ->  | BC5: =IF(AY5>0.661*(MAX($AY$4:$AY$18)-MIN($AY$4:$AY$18)),AY5,"") ->  | BI5: 2033 | BK5: 2020 | BL5: 0 | BN5: =IF(BL5>0,BK5,"") ->  | BO5: =IF(BL5>0,BL5/100,"") ->  | BQ5: 739978.66 | BS5: max | BT5: =MAX(BQ4:BQ103) -> 758897.47 | BW5: mean | BX5: =AVERAGE(BQ4:BQ103) -> 708400.5866
B6: 4 | C6: 0.2699136751 | D6: 0.3449 | E6: 0.4199136751 | G6: 5.083812141 | H6: 3.000364669 | I6: 0.3410666047 | T6: Grader | Y6: Cum.Hrs | AB6: 0.2410170287 | AS6: 2023 | AU6: 2021 | AV6: 0 | AY6: =IF(AV6>0,AV6/100,"") ->  | BI6: 2032 | BK6: 2021 | BL6: 0 | BQ6: 727106.68 | BS6: min | BT6: =MIN(BQ4:BQ103) -> 635186.07 | BW6: sd | BX6: =_xlfn.STDEV.S(BQ4:BQ103) -> 25907.4948
B7: 5 | C7: 0.240786873 | D7: 0.3133 | E7: 0.385786873 | G7: 5.062837906 | H7: 2.999637877 | I7: 0.3235131365 | T7: Intercept | U7: Hrs | V7: Hrs^2 | Y7: 27447.25932 | AB7: 0.3458067328 | AS7: 2025 | AU7: 2022 | AV7: 4 | AX7: 2022 | AY7: 0.04 | BA7: 0.04 | BI7: 2033 | BK7: 2022 | BL7: 0 | BQ7: 729192.14 | BS7: range | BT7: =BT5-BT6 -> 123711.4 | BW7: Formula | BX7: 0.555
B8: 6 | C8: 0.2196110185 | D8: 0.2896 | E8: 0.3596110185 | G8: 5.04964978 | H8: 3.000314814 | I8: 0.3352829227 | T8: B0 | U8: B1 | V8: B2 | AB8: 0.4885389656 | AS8: 2023 | AU8: 2023 | AV8: =COUNTIF($AS$4:$AS$103,AU8) -> 17 | AX8: 2023 | AY8: 0.17 | BB8: 0.17 | BI8: 2033 | BK8: 2023 | BL8: 0 | BQ8: 640483.03 | BS8: number of bins | BT8: 10 | BW8: alpha | BX8: 3.57
B9: 7 | C9: 0.2034948356 | D9: 0.271 | E9: 0.3384948356 | G9: 5.040528279 | H9: 2.999846982 | I9: 0.292511414 | S9: Mean | T9: 0.003231 | U9: 0.0507 | V9: 0.0042 | X9: Det | Y9: =T9+U9*(Y7/1150)+V9*(Y7/1150)^2 -> 3.605795113 | AB9: 0.6153830737 | AS9: 2025 | AU9: 2024 | AV9: =COUNTIF($AS$4:$AS$103,AU9) -> 29 | AX9: 2024 | AY9: 0.29 | BC9: 0.29 | BI9: 2033 | BK9: 2024 | BL9: 0 | BQ9: 705459.57 | BS9: range of bins | BT9: =BT7/BT8 -> 12371.14 | BW9: beta | BX9: 69054
B10: 8 | C10: 0.1908388448 | D10: 0.2558 | E10: 0.3208388448 | G10: 5.033878099 | H10: 3.001195225 | I10: 0.2697483412 | S10: SE | T10: 0.0002391 | U10: 0.002429059953 | V10: 6.27953715e-05 | AB10: 0.8466032594 | AS10: 2029 | AU10: 2025 | AV10: 24 | AX10: 2025 | AY10: 0.24 | BC10: 0.24 | BI10: 2032 | BK10: 2025 | BL10: 0 | BQ10: 673983.08 | BX10: 3.57
B11: 9 | C11: 0.1831754612 | D11: 0.2432 | E11: 0.3031754612 | G11: 5.027584993 | H11: 2.999182041 | I11: 0.2466171607 | AB11: 1.065636083 | AS11: 2025 | AU11: 2026 | AV11: =COUNTIF($AS$4:$AS$103,AU11) -> 14 | AX11: =IF(AV11>0,AU11,"") -> 2026 | AY11: 0.14 | BB11: 0.14 | BI11: 2033 | BK11: 2026 | BL11: =COUNTIF($BI$4:$BI$103,BK11) -> 0 | BN11: =IF(BL11>0,BK11,"") ->  | BQ11: 697857.99
B12: 10 | C12: 0.1773797445 | D12: 0.2324 | E12: 0.2873797445 | G12: 5.0226426 | H12: 2.999263436 | I12: 0.2495479707 | T12: =_xlfn.NORM.INV(RAND(),T9,T10) -> 0.003031546559 | U12: =_xlfn.NORM.INV(RAND(),U9,U10) -> 0.05323306951 | V12: =_xlfn.NORM.INV(RAND(),V9,V10) -> 0.004163257193 | X12: Stoch | Y12: =IF(T12+U12*(Y7/1150)+V12*(Y7/1150)^2<0,0,T12+U12*(Y7/1150)+V12*(Y7/1150)^2) -> 3.645122631 | AB12: 1.357043669 | AS12: 2024 | AU12: 2027 | AV12: =COUNTIF($AS$4:$AS$103,AU12) -> 8 | AX12: =IF(AV12>0,AU12,"") -> 2027 | AY12: 0.08 | BA12: 0.08 | BI12: 2033 | BK12: 2027 | BL12: 0 | BN12: =IF(BL12>0,BK12,"") ->  | BQ12: 680099.54 | BU12: Freq
B13: 11 | C13: 0.1730272978 | D13: 0.223 | E13: 0.2730272978 | G13: 5.018654768 | H13: 3.001091913 | I13: 0.24781904 | AB13: 1.688444301 | AS13: 2024 | AU13: 2028 | AV13: =COUNTIF($AS$4:$AS$103,AU13) -> 1 | AX13: 2028 | AY13: 0.01 | BA13: 0.01 | BI13: 2033 | BK13: 2028 | BL13: 0 | BQ13: 683810.24 | BS13: =BT6 -> 635186.07 | BT13: =BS13+$BT$9 -> 647557.21 | BU13: 1
B14: 12 | C14: 0.1698182394 | D14: 0.2148 | E14: 0.2598182394 | G14: 5.015338175 | H14: 3.000810638 | I14: 0.2158986782 | AB14: 1.976077601 | AS14: 2024 | AU14: 2029 | AV14: 3 | AX14: 2029 | AY14: 0.03 | BA14: 0.03 | BI14: 2033 | BK14: 2029 | BL14: =COUNTIF($BI$4:$BI$103,BK14) -> 0 | BQ14: 699432.56 | BS14: =BS13+$BT$9 -> 647557.21 | BT14: =BS14+$BT$9 -> 659928.35 | BU14: 2 | CA14: RiskWeibull(3.5732,69054,RiskShift(416377))
B15: 13 | C15: 0.1675337268 | D15: 0.2075 | E15: 0.2475337268 | G15: 5.012557172 | H15: 3.00168634 | I15: 0.2226519086 | AB15: 2.331656858 | AS15: 2025 | AU15: 2030 | AV15: 0 | BI15: 2033 | BK15: 2030 | BL15: 0 | BQ15: 696670.43 | BS15: =BS14+$BT$9 -> 659928.35 | BT15: =BS15+$BT$9 -> 672299.49 | BU15: 6
B16: 14 | C16: 0.1660097329 | D16: 0.201 | E16: 0.2360097329 | G16: 5.010174297 | H16: 3.000556165 | I16: 0.2187901496 | T16: Truck | Y16: Cum.Mileage | AB16: 2.561262295 | AS16: 2026 | AU16: 2031 | AV16: 0 | BI16: 2033 | BK16: 2031 | BL16: 0 | BQ16: 720699.27 | BS16: 672299.49 | BT16: =BS16+$BT$9 -> 684670.63 | BU16: 9
B17: 15 | C17: 0.1651205166 | D17: 0.1951 | E17: 0.2251205166 | G17: 5.008127448 | H17: 3.001367775 | I17: 0.2111040732 | T17: Intercept | U17: Mile | V17: Mile^2 | Y17: 30098.09197 | AB17: 2.827136919 | AS17: 2022 | AU17: 2032 | AV17: 0 | BI17: 2033 | BK17: 2032 | BL17: 9 | BN17: 2032 | BO17: 0.09 | BQ17: 715704.51 | BS17: 684670.63 | BT17: 697041.77 | BU17: 10
B18: 16 | C18: 0.1647678151 | D18: 0.1898 | E18: 0.2147678151 | G18: 5.006326879 | H18: 2.997425207 | I18: 0.2015943629 | T18: B0 | U18: B1 | V18: B2 | AB18: 3.068569586 | AS18: 2023 | AU18: 2033 | AV18: =COUNTIF($AS$4:$AS$103,AU18) -> 0 | BI18: 2033 | BK18: 2033 | BL18: 91 | BN18: 2033 | BO18: 0.91 | BQ18: 731120.6 | BS18: 697041.77 | BT18: 709412.91 | BU18: 20
B19: 17 | C19: 0.1648735517 | D19: 0.1849 | E19: 0.2048735517 | G19: 5.004756988 | H19: 2.997355169 | I19: 0.1883280325 | S19: Mean | T19: 0.002179 | U19: 0.0616 | V19: 0.0033 | X19: Det | Y19: =T19+U19*(Y17/18000)+V19*(Y17/18000)^2 -> 0.1144080689 | AB19: 3.460873529 | AS19: 2025 | BI19: 2033 | BQ19: 710745.6 | BS19: 709412.91 | BT19: 721784.05 | BU19: 20
B20: 18 | C20: 0.1653747824 | D20: 0.1804 | E20: 0.1953747824 | G20: 5.003364245 | H20: 2.996637651 | I20: 0.1877398792 | S20: SE | T20: 0.0008417838545 | U20: 0.006912284069 | V20: 0.000132876538 | AB20: 4.153578922 | AS20: 2023 | BI20: 2033 | BQ20: 689790.48 | BS20: 721784.05 | BT20: 734155.19 | BU20: 16
B21: 19 | C21: 0.1662201099 | D21: 0.1762 | E21: 0.1862201099 | G21: 5.002130377 | H21: 3.004021986 | I21: 0.1738177778 | AB21: 4.978999525 | AS21: 2025 | BI21: 2033 | BQ21: 717483.46 | BS21: 734155.19 | BT21: 746526.33 | BU21: 9
B22: 20 | C22: 0.1673670868 | D22: 0.1724 | E22: 0.1773670868 | G22: 5.001002306 | H22: 2.986834734 | I22: 0.1742495332 | T22: =_xlfn.NORM.INV(RAND(),T19,T20) -> 0.002398783723 | U22: =_xlfn.NORM.INV(RAND(),U19,U20) -> 0.06985934272 | V22: =_xlfn.NORM.INV(RAND(),V19,V20) -> 0.002982759333 | X22: Stoch | Y22: =IF((T22+U22*(Y17/18000)+V22*(Y17/18000)^2)>0,(T22+U22*(Y17/18000)+V22*(Y17/18000)^2),0) -> 0.1275514374 | AB22: 5.450687319 | AS22: 2029 | BI22: 2033 | BL22: Red | BM22: Yellow | BN22: Green | BQ22: 717844.77 | BS22: 746526.33 | BT22: 758897.47 | BU22: 6
AB23: 5.942953974 | AS23: 2024 | BI23: 2033 | BK23: =BN4 ->  | BL23: =IF(BO4<0.34*(MAX($BO$4:$BO$18)-MIN($BO$4:$BO$18)),BO4,"") ->  | BM23: =IF(AND(BO4>0.339*(MAX($BO$4:$BO$18)-MIN($BO$4:$BO$18)),BO4<0.66*(MAX($BO$4:$BO$18)-MIN($BO$4:$BO$18))),BO4,"") ->  | BN23: =IF(BO4>0.661*(MAX($BO$4:$BO$18)-MIN($BO$4:$BO$18)),BO4,"") ->  | BQ23: 747199.77
AB24: 6.455800444 | AS24: 2024 | BI24: 2033 | BK24: =BN5 ->  | BL24: =IF(BO5<0.34*(MAX($BO$4:$BO$18)-MIN($BO$4:$BO$18)),BO5,"") ->  | BM24: =IF(AND(BO5>0.339*(MAX($BO$4:$BO$18)-MIN($BO$4:$BO$18)),BO5<0.66*(MAX($BO$4:$BO$18)-MIN($BO$4:$BO$18))),BO5,"") ->  | BN24: =IF(BO5>0.661*(MAX($BO$4:$BO$18)-MIN($BO$4:$BO$18)),BO5,"") ->  | BQ24: 731810.55
AB25: 6.989225298 | AS25: 2024 | BI25: 2033 | BQ25: 727893.06
AB26: 3.348185688 | AS26: 2025 | BI26: 2033 | BQ26: 673938.51 | BS26: Binc Center | BU26: NormalDist
AB27: 3.570019156 | AS27: 2027 | BI27: 2032 | BQ27: 684350.28 | BS27: =AVERAGE(BS13:BT13) -> 641371.64 | BT27: =BU13 -> 1 | BU27: =_xlfn.NORM.DIST(BS27,$BX$5,$BX$6,FALSE) -> 5.419264787e-07 | BV27: =BU27*$BT$9*100 -> 0.6704248338
B28: **Please modify just this column** | AB28: 3.798452288 | AS28: 2024 | BI28: 2033 | BQ28: 745796.12 | BS28: =AVERAGE(BS14:BT14) -> 653742.78 | BT28: =BU14 -> 2 | BU28: =_xlfn.NORM.DIST(BS28,$BX$5,$BX$6,FALSE) -> 1.663302556e-06 | BV28: =BU28*$BT$9*100 -> 2.057694879
AB29: 4.033485562 | AS29: 2025 | BI29: 2033 | BQ29: 743448 | BS29: =AVERAGE(BS15:BT15) -> 666113.92 | BT29: 6 | BU29: 4.064202138e-06 | BV29: 5.027881363
AB30: 4.275118977 | AS30: 2025 | BI30: 2033 | BQ30: 693647.17 | BS30: =AVERAGE(BS16:BT16) -> 678485.06 | BT30: 9 | BU30: 7.90592165e-06 | BV30: 9.780526356
AB31: -1666.303413 | AS31: 2026 | BI31: 2033 | BQ31: 729086.83 | BS31: 690856.2 | BT31: 10 | BU31: 1.224342354e-05 | BV31: 15.14651067
AB32: -1745.576035 | AS32: 2024 | BI32: 2033 | BQ32: 666116.47 | BS32: 703227.34 | BT32: 20 | BU32: 1.509476659e-05 | BV32: 18.67394707
AB33: -1826.058563 | AS33: 2025 | BI33: 2033 | BQ33: 735628.34 | BS33: 715598.48 | BT33: 20 | BU33: 1.481573125e-05 | BV33: 18.32874855
P34: 2018 | R34: =Q34 -> 0 | AB34: -1907.760155 | AS34: 2025 | BI34: 2033 | BQ34: 696307.04 | BS34: 727969.62 | BT34: 16 | BU34: 1.157691761e-05 | BV34: 14.32196685
C35: Minimum | D35: Most likely | E35: Maximum | H35: Probabilistic | P35: 2019 | R35: =Q35+R34 -> 0 | AB35: -1990.689949 | AS35: 2024 | BI35: 2033 | BL35: =IF(BO16<0.34*(MAX($BO$4:$BO$18)-MIN($BO$4:$BO$18)),BO16,"") ->  | BQ35: 735751.64 | BS35: 740340.76 | BT35: 9 | BU35: 7.201715396e-06 | BV35: 8.909342941
A36: Trucks salvage value | C36: a | D36: b | E36: c | G36: alpha | H36: beta | I36: Prob. Func. | P36: 2020 | R36: =Q36+R35 -> 0 | AS36: 2024 | BI36: 2033 | BK36: 2032 | BL36: =IF(BO17<0.34*(MAX($BO$4:$BO$18)-MIN($BO$4:$BO$18)),BO17,"") -> 0.09 | BQ36: 704358.93 | BS36: 752711.9 | BT36: 6 | BU36: 3.566581297e-06 | BV36: 4.412267655
A37: y = 1.0583x-0.672 | B37: 1 | C37: 0.69 | D37: 0.74 | E37: 0.81 | G37: =(4*D37+E37-5*B37)/(E37-B37) -> 6.473684211 | H37: 0.8 | I37: =_xlfn.BETA.INV(RAND(),G37,H37,C37,E37) -> 0.7971931231 | P37: 2021 | R37: 0 | AS37: 2023 | BI37: 2033 | BK37: =BN18 -> 2033 | BL37: =IF(BO18<0.34*(MAX($BO$4:$BO$18)-MIN($BO$4:$BO$18)),BO18,"") ->  | BN37: 0.91 | BQ37: 703608.39
B38: 2 | C38: 0.6062271742 | D38: 0.62 | E38: 0.7222271742 | G38: 5.320016742 | H38: =(5*E38-B38-4*D38)/(E38-B38) -> 0.679983258 | I38: =_xlfn.BETA.INV(RAND(),G38,H38,C38,E38) -> 0.721500288 | P38: 2022 | R38: 0 | AS38: 2023 | BI38: 2033 | BQ38: 708394.1
B39: 3 | C39: 0.4498052269 | D39: 0.5058 | E39: 0.5618052269 | G39: 5.091879824 | H39: =(5*E39-B39-4*D39)/(E39-B39) -> 0.9081201756 | I39: 0.5611366596 | P39: 2023 | R39: 0 | AS39: 2023 | BI39: 2033 | BQ39: 732729.76 | BS39: 95% confidence | BT39: =_xlfn.NORM.INV(95%,BX5,BX6) -> 751014.6234
B40: 4 | C40: 0.3628928838 | D40: 0.4169 | E40: 0.4708928838 | G40: 5.061197217 | H40: =(5*E40-B40-4*D40)/(E40-B40) -> 0.9388027827 | I40: 0.4448463134 | P40: 2024 | R40: 0 | AS40: 2024 | BI40: 2033 | BQ40: 739934.62 | BS40: 75% confidence | BT40: =_xlfn.NORM.INV(75%,BX5,BX6) -> 725874.9263
B41: 5 | C41: 0.3068400869 | D41: 0.3588 | E41: 0.4108400869 | G41: 5.04535914 | H41: =(5*E41-B41-4*D41)/(E41-B41) -> 0.9546408598 | I41: 0.3747974286 | P41: 2025 | R41: 0 | AS41: 2025 | BI41: 2033 | BQ41: 708572.71 | BS41: 50% confidence | BT41: =_xlfn.NORM.INV(50%,BX5,BX6) -> 708400.5866
B42: 6 | C42: 0.2674615672 | D42: 0.3175 | E42: 0.3674615672 | G42: 5.035480676 | H42: =(5*E42-B42-4*D42)/(E42-B42) -> 0.9645193244 | I42: 0.3455629574 | P42: 2026 | R42: 0 | AS42: 2026 | BI42: 2033 | BQ42: 733579.08 | BS42: 25% confidence | BT42: =_xlfn.NORM.INV(25%,BX5,BX6) -> 690926.2469
B43: 7 | C43: 0.2382219349 | D43: 0.2862 | E43: 0.3342219349 | G43: =(4*D43+E43-5*B43)/(E43-B43) -> 5.028817002 | H43: =(5*E43-B43-4*D43)/(E43-B43) -> 0.9711829981 | I43: 0.3215897996 | P43: 2027 | R43: 0 | AS43: 2026 | BI43: 2033 | BQ43: 755115.55
B44: 8 | C44: 0.2156569802 | D44: 0.2617 | E44: 0.3076569802 | G44: 5.02389752 | H44: 0.97610248 | I44: 0.2868383861 | P44: 2028 | R44: 0 | AS44: 2025 | BI44: 2033 | BQ44: 666153.43
B45: 9 | C45: 0.1977451834 | D45: 0.2417 | E45: 0.2857451834 | G45: 5.020217533 | H45: 0.9797824671 | I45: 0.24367727 | P45: 2029 | R45: 0 | AS45: 2025 | BI45: 2033 | BQ45: 710868.4
B46: 10 | C46: 0.1832209552 | D46: 0.2252 | E46: 0.2672209552 | G46: 5.017269869 | H46: 0.9827301308 | I46: 0.2616062882 | P46: 2030 | R46: 0 | AS46: 2024 | BI46: 2033 | BQ46: 711194.7
B47: 11 | C47: 0.1712481487 | D47: 0.2112 | E47: 0.2512481487 | G47: 5.014903367 | H47: 0.9850966329 | I47: 0.2469283416 | P47: 2031 | R47: 0 | AS47: 2025 | BI47: 2033 | BQ47: 699080.09
B48: 12 | C48: 0.1612503068 | D48: 0.1993 | E48: 0.2372503068 | G48: 5.01290525 | H48: 0.9870947499 | I48: 0.227764646 | P48: 2032 | R48: 0 | AS48: 2025 | BI48: 2033 | BQ48: 730725.25
B49: 13 | C49: 0.1528160306 | D49: 0.1888 | E49: 0.2248160306 | G49: 5.011276873 | H49: 0.9887231274 | I49: 0.2060497854 | P49: 2033 | R49: 0 | AS49: 2026 | BI49: 2033 | BQ49: 708272.59
B50: 14 | C50: 0.1456431891 | D50: 0.1796 | E50: 0.2136431891 | G50: 5.009877356 | H50: 0.9901226438 | I50: 0.1984418919 | P50: 2034 | R50: 0 | AS50: 2022 | BI50: 2033 | BQ50: 680693.04
B51: 15 | C51: 0.1395044804 | D51: 0.1715 | E51: 0.2035044804 | G51: 5.008651908 | H51: 0.9913480918 | I51: 0.1973658792 | P51: 2035 | R51: 0 | AS51: 2027 | BI51: 2033 | BQ51: 729622.12
B52: 16 | C52: 0.1342253393 | D52: 0.1642 | E52: 0.1942253393 | G52: 5.007598575 | H52: 0.9924014254 | I52: 0.1923522082 | P52: 2036 | R52: 0 | AS52: 2024 | BI52: 2033 | BQ52: 691420.91
B53: 17 | C53: 0.1296692933 | D53: 0.1577 | E53: 0.1856692933 | G53: =(4*D53+E53-5*B53)/(E53-B53) -> 5.00665368 | H53: =(5*E53-B53-4*D53)/(E53-B53) -> 0.9933463202 | I53: 0.1824371218 | P53: 2037 | R53: 0 | AS53: 2029 | BI53: 2033 | BQ53: 729218.23
B54: 18 | C54: 0.1257279789 | D54: 0.1517 | E54: 0.1777279789 | G54: 5.005841675 | H54: 0.9941583253 | I54: 0.1553370423 | P54: 2038 | R54: 0 | AS54: 2023 | BI54: 2033 | BQ54: 657074.64
B55: 19 | C55: 0.122314166 | D55: 0.1463 | E55: 0.170314166 | G55: 5.005101342 | H55: 0.9948986582 | I55: 0.1688988961 | P55: 2039 | R55: 0 | AS55: 2022 | BI55: 2033 | BQ55: 698287.22
B56: 20 | C56: 0.1193567785 | D56: 0.1414 | E56: 0.1633567785 | G56: 5.004427519 | H56: 0.995572481 | I56: 0.1604623638 | P56: 2040 | R56: 0 | AS56: 2026 | BI56: 2033 | BQ56: 673209.06
B57: 21 | C57: 0.1167972699 | D57: 0.1368 | E57: 0.1567972699 | G57: 5.003837658 | H57: 0.9961623422 | I57: 0.1505663155 | P57: 2041 | R57: 0 | AS57: 2025 | BI57: 2033 | BQ57: 688401.08
B58: 22 | C58: 0.1145869422 | D58: 0.1326 | E58: 0.1505869422 | G58: 5.003292893 | H58: 0.9967071075 | I58: 0.1504907239 | P58: 2042 | R58: 0 | AS58: 2027 | BI58: 2033 | BQ58: 730511.74
B59: 23 | C59: 0.1126849299 | D59: 0.1287 | E59: 0.1446849299 | G59: 5.002797586 | H59: 0.9972024136 | I59: 0.1416377375 | P59: 2043 | R59: 0 | AS59: 2025 | BI59: 2033 | BQ59: 708522.14
B60: 24 | C60: 0.1110566647 | D60: 0.1251 | E60: 0.1390566647 | G60: 5.002339667 | H60: 0.9976603331 | I60: 0.1368494821 | P60: 2044 | R60: 0 | AS60: 2025 | BI60: 2033 | BQ60: 728619.26
B61: 25 | C61: 0.1096726902 | D61: 0.1216726902 | E61: 0.1336726902 | G61: 5.001930321 | H61: 0.9980696788 | I61: 0.1299506245 | P61: 2045 | R61: 0 | AS61: 2023 | BI61: 2033 | BQ61: 705998.15
B62: 26 | C62: 0.1085077374 | D62: 0.1185077374 | E62: 0.1285077374 | G62: =(4*D62+E62-5*B62)/(E62-B62) -> 5.001546103 | H62: =(5*E62-B62-4*D62)/(E62-B62) -> 0.9984538967 | I62: 0.128368895 | P62: 2046 | R62: 0 | AS62: 2027 | BI62: 2033 | BQ62: 716993.68
B63: 27 | C63: 0.1075399956 | D63: 0.1155399956 | E63: 0.1235399956 | G63: =(4*D63+E63-5*B63)/(E63-B63) -> 5.001190633 | H63: =(5*E63-B63-4*D63)/(E63-B63) -> 0.998809367 | I63: 0.1227050541 | P63: 2047 | R63: 0 | AS63: 2023 | BI63: 2033 | BQ63: 716617.87
B64: 28 | C64: 0.1067505318 | D64: 0.1127505318 | E64: 0.1187505318 | G64: =(4*D64+E64-5*B64)/(E64-B64) -> 5.000860794 | H64: =(5*E64-B64-4*D64)/(E64-B64) -> 0.9991392064 | I64: 0.1169413268 | P64: 2048 | R64: 0 | AS64: 2026 | BI64: 2033 | BQ64: 749564.29
B65: 29 | C65: 0.1061228244 | D65: 0.1101228244 | E65: 0.1141228244 | G65: =(4*D65+E65-5*B65)/(E65-B65) -> 5.000553904 | H65: =(5*E65-B65-4*D65)/(E65-B65) -> 0.9994460961 | I65: 0.1136720202 | P65: 2049 | R65: 0 | AS65: 2027 | BI65: 2032 | BQ65: 658648.65
P66: 2050 | R66: 0 | AS66: 2024 | BI66: 2033 | BQ66: 744139.33
AS67: 2026 | BI67: 2033 | BQ67: 717885.29
AS68: 2026 | BI68: 2033 | BQ68: 695867.98
AS69: 2024 | BI69: 2033 | BQ69: 720447.78
B70: **Please modify just this column** | AS70: 2027 | BI70: 2032 | BQ70: 713034.33
AS71: 2024 | BI71: 2033 | BQ71: 705987.44
AS72: 2024 | BI72: 2033 | BQ72: 758897.47
AS73: 2023 | BI73: 2033 | BQ73: 703064.38
AS74: 2024 | BI74: 2033 | BQ74: 707145.57
AS75: 2027 | BI75: 2033 | BQ75: 738686.11
AS76: 2025 | BI76: 2032 | BQ76: 755151.84
AS77: 2024 | BI77: 2033 | BQ77: 723395.47
AS78: 2028 | BI78: 2033 | BQ78: 711849.24
AS79: 2023 | BI79: 2032 | BQ79: 701720.31
AS80: 2024 | BI80: 2033 | BQ80: 704700.19
AS81: 2023 | BI81: 2032 | BQ81: 660708.66
AS82: 2024 | BI82: 2033 | BQ82: 686202.58
AS83: 2025 | BI83: 2033 | BQ83: 682407.49
AS84: 2024 | BI84: 2033 | BQ84: 691449.07
AS85: 2026 | BI85: 2033 | BQ85: 693621.28
AS86: 2023 | BI86: 2033 | BQ86: 710161.15
AS87: 2024 | BI87: 2033 | BQ87: 734537.21
A88: Rigid-Frame | B88: Truck | C88: (0-99,999 | D88: lbs) | E88: 0.5511 | F88: 0.509 | G88: 0.4696 | H88: 0.4332 | I88: 0.3996 | J88: 0.3688 | K88: 0.341 | L88: 0.3159 | M88: 0.2938 | N88: 0.2745 | O88: 0.258 | P88: 0.2445 | Q88: 0.2337 | R88: 0.2259 | S88: 0.2209 | T88: 0.2187 | AS88: 2023 | BI88: 2033 | BQ88: 713559.38
A89: Rigid-Frame | B89: Truck | C89: (100,000+ | D89: lbs) | E89: 0.6053 | F89: 0.5582 | G89: 0.5134 | H89: 0.4707 | I89: 0.4302 | J89: 0.392 | K89: 0.3559 | L89: 0.322 | M89: 0.2903 | N89: 0.2609 | O89: 0.2336 | P89: 0.2085 | Q89: 0.1857 | R89: 0.165 | S89: 0.1465 | T89: 0.1303 | AS89: 2026 | BI89: 2033 | BQ89: 704417.95
A90: Articulated | B90: Truck | C90: (0-49,999 | D90: lbs) | E90: 0.5444 | F90: 0.4783 | G90: 0.4179 | H90: 0.3633 | I90: 0.3145 | J90: 0.2715 | K90: 0.2342 | L90: 0.2028 | M90: 0.1771 | N90: 0.1572 | O90: 0.143 | P90: 0.1347 | Q90: 0.1321 | R90: 0.1321 | S90: 0.1321 | T90: 0.1321 | AS90: 2026 | BI90: 2033 | BQ90: 721567.32
A91: Articulated | B91: Truck | C91: (50,000+ | D91: lbs) | E91: 0.5204 | F91: 0.455 | G91: 0.3955 | H91: 0.3421 | I91: 0.2946 | J91: 0.2531 | K91: 0.2177 | L91: 0.1882 | M91: 0.1648 | N91: 0.1473 | O91: 0.1358 | P91: 0.1304 | Q91: 0.1304 | R91: 0.1304 | S91: 0.1304 | T91: 0.1304 | AS91: 2026 | BI91: 2033 | BQ91: 675884.17
AS92: 2024 | BI92: 2033 | BQ92: 635186.07
A93: Min | E93: =MIN(E88:E91) -> 0.5204 | F93: =MIN(F88:F91) -> 0.455 | G93: 0.3955 | H93: 0.3421 | I93: 0.2946 | J93: 0.2531 | K93: 0.2177 | L93: 0.1882 | M93: 0.1648 | N93: 0.1473 | O93: 0.1358 | P93: 0.1304 | Q93: 0.1304 | R93: 0.1304 | S93: 0.1304 | T93: 0.1303 | AS93: 2023 | BI93: 2033 | BQ93: 725819.48
A94: F | E94: =_xlfn.QUARTILE.INC(E88:E91, 1) -> 0.5384 | F94: =_xlfn.QUARTILE.INC(F88:F91, 1) -> 0.472475 | G94: 0.4123 | H94: 0.358 | I94: 0.309525 | J94: 0.2669 | K94: 0.230075 | L94: 0.19915 | M94: 0.174025 | N94: 0.154725 | O94: 0.1412 | P94: 0.133625 | Q94: 0.131675 | R94: 0.131675 | S94: 0.131675 | T94: 0.130375 | AS94: 2025 | BI94: 2033 | BQ94: 728963.55
A95: Med | E95: =_xlfn.QUARTILE.INC(E88:E91, 2) -> 0.54775 | F95: =_xlfn.QUARTILE.INC(F88:F91, 2) -> 0.49365 | G95: 0.44375 | H95: 0.39825 | I95: 0.35705 | J95: 0.32015 | K95: 0.2876 | L95: 0.25935 | M95: 0.2337 | N95: 0.20905 | O95: 0.1883 | P95: 0.1716 | Q95: 0.1589 | R95: 0.14855 | S95: 0.1393 | T95: 0.13125 | AS95: 2024 | BI95: 2033 | BQ95: 749070.25
A96: Thir | E96: =_xlfn.QUARTILE.INC(E88:E91, 3) -> 0.56465 | F96: =_xlfn.QUARTILE.INC(F88:F91, 3) -> 0.5213 | G96: 0.48055 | H96: 0.442575 | I96: 0.40725 | J96: 0.3746 | K96: 0.344725 | L96: 0.317425 | M96: 0.291175 | N96: 0.2643 | O96: 0.2397 | P96: 0.2175 | Q96: 0.1977 | R96: 0.180225 | S96: 0.1651 | T96: 0.15375 | AS96: 2025 | BI96: 2033 | BQ96: 671935.01
A97: Max | E97: =MAX(E88:E91) -> 0.6053 | F97: =MAX(F88:F91) -> 0.5582 | G97: 0.5134 | H97: 0.4707 | I97: 0.4302 | J97: 0.392 | K97: 0.3559 | L97: 0.322 | M97: 0.2938 | N97: 0.2745 | O97: 0.258 | P97: 0.2445 | Q97: 0.2337 | R97: 0.2259 | S97: 0.2209 | T97: 0.2187 | AS97: 2025 | BI97: 2033 | BQ97: 709937.58
AS98: 2024 | BI98: 2033 | BQ98: 719800.56
AS99: 2024 | BI99: 2033 | BQ99: 669389.35
A100: Minimum value | B100: MIN(cell range) | AS100: 2022 | BI100: 2032 | BQ100: 697116.48
A101: First quartile | B101: QUARTILE.INC(cell range, 1) | AS101: 2027 | BI101: 2033 | BQ101: 717296.42
A102: Median value | B102: QUARTILE.INC(cell range, 2) | AS102: 2024 | BI102: 2033 | BQ102: 663692.08
A103: Third quartile | B103: QUARTILE.INC(cell range, 3) | AS103: 2023 | BI103: 2033 | BQ103: 698268.09
A104: Maximum value | B104: MAX(cell range)
AQ505: 2020

Sheet DataSource (hidden)
A1: Truck's database | I1: Grader's database | Q1: Construction machinery and equipment price index
A2: Year | B2: Number of data | C2: Average of mileage | D2: Average of adjusted cumulative operating cost | F2: The equipment model year | G2: Average of purchase price | I2: Year | J2: Number of data | K2: Average of mileage | L2: Average of adjusted cumulative operating cost | N2: The equipment model year | O2: Average of purchase price | Q2: Year | R2: Index | T2: Year | U2: Index
A3: 1 | B3: 25 | C3: 21367.79567 | D3: 11728.31562 | F3: 1985 | G3: 9284.754604 | I3: 1 | J3: 35 | K3: 1068.643429 | L3: 10500.39798 | N3: 1998 | O3: 229908.1515 | Q3: 1982 | R3: 100 | T3: 2001 | U3: 149.9
A4: 2 | B4: 25 | C4: 41015.60667 | D4: 18730.22687 | F4: 1987 | G4: 22565.91187 | I4: 2 | J4: 36 | K4: 2050.834444 | L4: 40650.04232 | N4: 1999 | O4: 249202.0077 | Q4: 1983 | R4: 102.35 | T4: 2002 | U4: 150.6
A5: 3 | B5: 20 | C5: 64005.30833 | D5: 21497.07588 | F5: 1989 | G5: 38501.47216 | I5: 3 | J5: 34 | K5: 3091.505196 | L5: 46206.30307 | N5: 2000 | O5: 251717.1717 | Q5: 1984 | R5: 103.8416667 | T5: 2003 | U5: 153.25
A6: 4 | B6: 19 | C6: 81229.0614 | D6: 32044.2912 | F6: 1990 | G6: 26104.53237 | I6: 4 | J6: 32 | K6: 4067.23125 | L6: 71381.23451 | N6: 2001 | O6: 148432.2882 | Q6: 1985 | R6: 105.4416667 | T6: 2004 | U6: 158.4583333
A7: 5 | B7: 21 | C7: 100628.4603 | D7: 33712.42013 | F7: 1991 | G7: 24410.87 | I7: 5 | J7: 29 | K7: 5121.931034 | L7: 82502.72097 | N7: 2002 | O7: 259965.9861 | Q7: 1986 | R7: 106.6833333 | T7: 2005 | U7: 168.3083333
A8: 6 | B8: 16 | C8: 122313.1979 | D8: 58076.48323 | F8: 1995 | G8: 87228.0322 | I8: 6 | J8: 22 | K8: 6110.912727 | L8: 98634.66752 | N8: 2003 | O8: 176710.9101 | Q8: 1987 | R8: 108.9333333 | T8: 2006 | U8: 175.45
A9: 7 | B9: 10 | C9: 136545.2667 | D9: 67473.83953 | F9: 1998 | G9: 35126.90011 | I9: 7 | J9: 20 | K9: 7246.072667 | L9: 120650.3116 | N9: 2005 | O9: 222956.7605 | Q9: 1988 | R9: 111.7583333 | T9: 2007 | U9: 179.5666667
A10: 8 | B10: 7 | C10: 112274.1667 | D10: 57191.03791 | F10: 1999 | G10: 70661.4654 | I10: 8 | J10: 14 | K10: 8357.1075 | L10: 131600.1365 | N10: 2006 | O10: 210596.3874 | Q10: 1989 | R10: 117.175 | T10: 2008 | U10: 185.3583333
A11: 9 | B11: 6 | C11: 113593.5278 | D11: 69635.58189 | F11: 2000 | G11: 95624.05724 | I11: 9 | J11: 9 | K11: 10113.33593 | L11: 152616.7737 | N11: 2007 | O11: 240880.7221 | Q11: 1990 | R11: 121.625 | T11: 2009 | U11: 191.025
A12: 10 | B12: 6 | C12: 121393.3611 | D12: 77329.2869 | F12: 2001 | G12: 56634.33956 | I12: 10 | J12: 9 | K12: 10147.68889 | L12: 175629.8725 | N12: 2008 | O12: 192060.4235 | Q12: 1991 | R12: 125.1916667 | T12: 2010 | U12: 191.4166667
A13: 11 | B13: 6 | C13: 127753.6111 | D13: 80736.59555 | F13: 2005 | G13: 85928.60326 | I13: 11 | J13: 8 | K13: 10632.515 | L13: 195879.1812 | N13: 2009 | O13: 209658.4217 | Q13: 1992 | R13: 128.7083333 | T13: 2011 | U13: 197.3833333
A14: 12 | B14: 6 | C14: 134122.1944 | D14: 87328.07601 | F14: 2006 | G14: 90235.19521 | I14: 12 | J14: 6 | K14: 11365.50667 | L14: 136780.8015 | N14: 2010 | O14: 253265.99 | Q14: 1993 | R14: 132.025 | T14: 2012 | U14: 205.375
A15: 13 | B15: 4 | C15: 155144.7917 | D15: 94426.25414 | F15: 2007 | G15: 86736.58808 | I15: 13 | J15: 4 | K15: 14478.875 | L15: 191223.3053 | N15: 2011 | O15: 246154.4871 | Q15: 1994 | R15: 133.7166667 | T15: 2013 | U15: 210.7333333
A16: 14 | B16: 1 | C16: 187247.1667 | D16: 139448.0601 | F16: 2011 | G16: 162408.2792 | I16: 14 | J16: 5 | K16: 16192.1 | L16: 217723.4565 | N16: 2012 | O16: 275649.1966 | Q16: 1995 | R16: 136.6583333 | T16: 2014 | U16: 214.2666667
A17: 15 | B17: 1 | C17: 196681.1667 | D17: 149959.7982 | F17: 2012 | G17: 114587.5123 | I17: 15 | J17: 5 | K17: 17284.9 | L17: 219286.3828 | N17: 2013 | O17: 298978.0467 | Q17: 1996 | R17: 139.8833333 | T17: 2015 | U17: 216.925
A18: 16 | B18: 1 | C18: 207292.1667 | D18: 160905.8491 | F18: 2013 | G18: 109923.5677 | I18: 16 | J18: 4 | K18: 20153.875 | L18: 225402.9545 | N18: 2014 | O18: 355821.8636 | Q18: 1997 | R18: 142.2416667 | T18: 2016 | U18: 218.9416667
A19: 17 | B19: 2 | C19: 260988.0833 | D19: 148437.9911 | F19: 2014 | G19: 123926.8484 | I19: 17 | J19: 3 | K19: 20617.5 | L19: 228424.4325 | N19: 2015 | O19: 301026.7811 | Q19: 1998 | R19: 145.1666667 | T19: 2017 | U19: 220.8416667
A20: 18 | B20: 5 | C20: 302692.6333 | D20: 129838.5536 | F20: 2015 | G20: 164112.0203 | I20: 18 | J20: 3 | K20: 21409.5 | L20: 235030.5999 | N20: 2016 | O20: 274645.1218 | Q20: 1999 | R20: 147.7666667 | T20: 2018 | U20: 222.5
A21: 19 | B21: 3 | C21: 302681.0556 | D21: 72612.13099 | F21: 2016 | G21: 160530.5724 | I21: 19 | J21: 1 | K21: 10830 | L21: 204671.7662 | N21: 2017 | O21: 372778.3857 | Q21: 2000 | R21: 148.5
A22: 20 | B22: 2 | C22: 292697.5833 | D22: 99107.985 | F22: 2017 | G22: 135971.0841
A23: 23 | B23: 1 | C23: 414000 | D23: 65690.89
A25: ** All costs are adjecsted using the construction machinery and equipment price index (CMEPI), considering the year of 2018 as the base year **

Sheet UserManual (hidden)
